bitfinex-derivatives/quotes_SOLF0:USTF0_20260227
["timestamp","ask_amount","ask_price","bid_price","bid_amount"]
[1772202203126,7.02631855,82.602,82.543,7.62209356]
[1772202204822,7.02631855,82.602,82.566,10.8999]
[1772202205324,7.02631855,82.602,82.543,7.62209356]
[1772202205523,7.02631855,82.621,82.543,7.62209356]
[1772202205726,10.8926,82.622,82.543,7.62209356]
[1772202205727,7.02631855,82.619,82.543,7.62209356]
[1772202205923,7.02631855,82.617,82.543,7.62209356]
[1772202206321,7.02631855,82.615,82.543,7.62209356]
[1772202206729,7.02631855,82.614,82.543,7.62209356]
[1772202206929,7.02631855,82.614,82.571,10.8992]
[1772202208429,7.02631855,82.614,82.543,7.62209356]
[1772202209932,7.02631855,82.614,82.577,10.8985]
[1772202210231,10.27230245,82.613,82.577,10.8985]
[1772202210433,10.27230245,82.612,82.577,10.8985]
[1772202210635,7.02631855,82.614,82.584,10.8976]
[1772202210932,7.02631855,82.63,82.559,7.62209356]
[1772202211231,7.02631855,82.63,82.522,169.6456]
[1772202211232,7.02631855,82.628,82.561,7.62209356]
[1772202211436,7.02631855,82.626,82.561,7.62209356]
[1772202211733,7.02631855,82.624,82.561,7.62209356]
[1772202211926,7.02631855,82.622,82.561,7.62209356]
[1772202212232,7.02631855,82.62,82.561,7.62209356]
[1772202212425,7.02631855,82.618,82.561,7.62209356]
[1772202212731,17.2985053,82.617,82.561,7.62209356]
[1772202212932,10.27218675,82.616,82.579,10.8982]
[1772202213128,7.02631855,82.617,82.579,10.8982]
[1772202213129,10.27218675,82.615,82.579,10.8982]
[1772202213431,10.27218675,82.614,82.579,10.8982]
[1772202213629,7.02631855,82.617,82.579,10.8982]
[1772202213630,10.27218675,82.613,82.579,10.8982]
[1772202213835,10.27218675,82.612,82.579,10.8982]
[1772202214033,10.27218675,82.611,82.572,10.8992]
[1772202214230,10.27218675,82.61,82.561,7.62209356]
[1772202214534,10.27218675,82.609,82.561,7.62209356]
[1772202214733,10.27218675,82.608,82.561,7.62209356]
[1772202214934,10.27218675,82.607,82.561,7.62209356]
[1772202215131,10.27218675,82.606,82.561,7.62209356]
[1772202215337,10.27218675,82.605,82.561,7.62209356]
[1772202215635,10.27218675,82.604,82.561,7.62209356]
[1772202215836,10.27218675,82.603,82.561,7.62209356]
[1772202216028,10.27218675,82.602,82.571,10.8993]
[1772202216334,10.27218675,82.601,82.571,10.8993]
[1772202216529,10.8938,82.613,82.571,10.8993]
[1772202216726,10.32413803,82.612,82.571,10.8993]
[1772202216926,7.02631855,82.61,82.571,10.8993]
[1772202217126,10.32413803,82.609,82.571,10.8993]
[1772202217330,10.32413803,82.608,82.571,10.8993]
[1772202217533,10.32413803,82.607,82.571,10.8993]
[1772202217740,10.32413803,82.606,82.571,10.8993]
[1772202217931,10.32413803,82.605,82.577,10.8984]
[1772202218135,10.32413803,82.604,82.577,10.8984]
[1772202218331,10.32539464,82.603,82.577,10.8984]
[1772202218533,10.32539464,82.602,82.577,10.8984]
[1772202218733,17.75679447,82.62,82.577,10.8984]
[1772202218933,6.86379447,82.618,82.577,10.8984]
[1772202219140,10.32539464,82.617,82.577,10.8984]
[1772202219338,6.86379447,82.618,82.577,10.8984]
[1772202219339,10.32539464,82.616,82.577,10.8984]
[1772202219538,6.86379447,82.611,82.568,10.8997]
[1772202219739,6.86379447,82.609,82.546,7.52979839]
[1772202219933,6.86379447,82.607,82.546,7.52979839]
[1772202220134,7.39062718,82.604,82.561,10.9006]
[1772202220440,7.39062718,82.602,82.561,10.9006]
[1772202220742,7.39062718,82.6,82.561,10.9006]
[1772202220933,7.39062718,82.598,82.561,10.9006]
[1772202221134,10.32539464,82.597,82.561,10.9006]
[1772202221334,10.32539464,82.596,82.561,10.9006]
[1772202221640,10.32539464,82.595,82.561,10.9006]
[1772202221836,10.32539464,82.594,82.561,10.9006]
[1772202222037,10.32539464,82.593,82.561,10.9006]
[1772202222238,10.32539464,82.592,82.561,10.9006]
[1772202222439,10.32539464,82.591,82.567,10.8998]
[1772202222637,7.39062718,82.598,82.567,10.8998]
[1772202222836,10.33161882,82.597,82.567,10.8998]
[1772202223036,10.33161882,82.596,82.567,10.8998]
[1772202223236,10.33161882,82.595,82.567,10.8998]
[1772202223439,10.33161882,82.594,82.567,10.8998]
[1772202223741,10.33161882,82.593,82.567,10.8998]
[1772202224034,10.33161882,82.592,82.567,10.8998]
[1772202224238,7.39062718,82.598,82.546,7.52979839]
[1772202224436,10.33244253,82.597,82.546,7.52979839]
[1772202224641,10.33244253,82.596,82.546,7.52979839]
[1772202224943,4.253e-05,82.595,82.546,7.52979839]
[1772202225136,7.42174257,82.613,82.546,7.52979839]
[1772202225337,11.21381179,82.625,82.594,10.8962]
[1772202225536,11.21381179,82.633,82.572,6.93473162]
[1772202225731,11.21381179,82.631,82.572,6.93473162]
[1772202225943,29.38705082,82.673,82.505,169.6804]
[1772202225944,11.21381179,82.617,82.558,7.61449238]
[1772202226143,11.21381179,82.618,82.558,7.61449238]
[1772202226442,11.21381179,82.617,82.558,7.61449238]
[1772202227036,10.8939,82.613,82.573,10.899]
[1772202227737,10.8949,82.605,82.565,10.9]
[1772202228135,11.21381179,82.614,82.558,7.61449238]
[1772202228445,10.894,82.612,82.558,7.61449238]
[1772202228941,11.21381179,82.588,82.515,7.6353668]
[1772202229140,11.21381179,82.578,82.515,7.6353668]
[1772202229944,11.21381179,82.587,82.515,7.6353668]
[1772202230145,11.21381179,82.588,82.515,7.6353668]
[1772202230344,10.8982,82.58,82.536,10.9038]
[1772202230945,0.0420952,82.574,82.527,10.9051]
[1772202232039,0.04655459,82.572,82.515,7.6353668]
[1772202232234,0.04655459,82.572,82.514,10.9068]
[1772202232442,0.04655459,82.563,82.514,10.9068]
[1772202232739,0.04655459,82.563,82.5,7.60190462]
[1772202233247,0.04655459,82.563,82.509,10.9074]
[1772202233646,10.9007,82.561,82.509,10.9074]
[1772202233950,36.34,82.563,82.492,7.62563482]
[1772202234249,47.55381179,82.57,82.508,7.62542089]
[1772202234447,11.21381179,82.571,82.508,7.62542089]
[1772202234641,472.93853891,82.573,82.51,7.62542089]
[1772202235443,472.93853891,82.573,82.535,7.53411222]
[1772202236043,361.31810568,82.573,82.535,7.53411222]
[1772202236441,361.31810568,82.573,82.545,10.9027]
[1772202236940,361.31810568,82.573,82.489,21.8202]
[1772202237651,361.31810568,82.573,82.543,10.9029]
[1772202237837,32.44701631,82.571,82.466,21.8264]
[1772202238042,32.45077912,82.565,82.5,10.9086]
[1772202238243,32.45077912,82.563,82.466,21.8264]
[1772202238446,10.9023,82.549,82.466,21.8264]
[1772202239244,10.9041,82.535,82.444,21.8322]
[1772202239451,32.52678053,82.548,82.441,169.8116]
[1772202239642,10.26384047,82.547,82.441,169.8116]
[1772202239843,10.26384047,82.546,82.497,10.9091]
[1772202240045,32.52678053,82.548,82.497,10.9091]
[1772202240246,10.2634639,82.547,82.497,10.9091]
[1772202240441,10.2634639,82.546,82.497,10.9091]
[1772202240648,32.52678053,82.548,82.497,10.9091]
[1772202240847,32.53076927,82.545,82.446,58.1717]
[1772202241148,32.53076927,82.545,82.451,5.44918225]
[1772202241347,10.9034,82.54,82.493,10.9096]
[1772202241543,32.55288797,82.539,82.493,10.9096]
[1772202241947,32.55288797,82.539,82.451,5.44918225]
[1772202242150,32.55684767,82.554,82.452,169.7887]
[1772202242350,10.25499444,82.553,82.453,36.34]
[1772202242552,10.25499444,82.552,82.453,36.34]
[1772202242753,32.55684767,82.55,82.45,62.0]
[1772202242952,32.55684767,82.548,82.45,62.0]
[1772202243247,32.55522153,82.546,82.451,5.44988376]
[1772202243454,32.55522153,82.571,82.454,36.34]
[1772202243753,32.55522153,82.568,82.513,10.9069]
[1772202243950,32.55522153,82.566,82.474,21.8243]
[1772202244254,10.9008,82.561,82.515,10.9067]
[1772202244754,43.45986644,82.561,82.515,10.9067]
[1772202245055,32.55906644,82.56,82.522,10.9057]
[1772202245357,361.31810568,82.573,82.485,21.8212]
[1772202245557,361.31810568,82.573,82.481,5.4514754]
[1772202246153,43.47932538,82.548,82.442,177.0]
[1772202246454,43.47932538,82.548,82.468,5.45102053]
[1772202246649,32.57692538,82.548,82.468,5.45102053]
[1772202247659,32.57692538,82.548,82.463,21.8272]
[1772202247955,32.57692538,82.548,82.471,5.45102053]
[1772202249055,32.57692538,82.548,82.509,10.9075]
[1772202249457,32.57692538,82.548,82.468,21.8259]
[1772202251353,32.57692538,82.548,82.498,10.9088]
[1772202252458,32.57692538,82.548,82.505,10.908]
[1772202253051,13.58792538,82.548,82.471,5.45100163]
[1772202253250,2.538e-05,82.548,82.471,5.45100163]
[1772202253458,2.538e-05,82.548,82.529,10.9048]
[1772202253656,2.538e-05,82.548,82.465,299.0]
[1772202254027,2.538e-05,82.548,82.435,169.8244]
[1772202254282,2.538e-05,82.548,82.514,10.9068]
[1772202255654,2.538e-05,82.548,82.52,4.72355322]
[1772202256252,2.538e-05,82.548,82.479,21.823]
[1772202256951,2.538e-05,82.548,82.514,10.9068]
[1772202257148,2.538e-05,82.548,82.479,21.823]
[1772202257452,2.538e-05,82.548,82.46,169.7725]
[1772202257850,2.538e-05,82.548,82.465,169.7627]
[1772202258050,14.12126466,82.563,82.475,169.7426]
[1772202258451,14.12126466,82.563,82.466,169.7617]
[1772202258649,14.12126466,82.563,82.491,21.8198]
[1772202259050,14.12126466,82.563,82.523,10.9057]
[1772202259961,14.12126466,82.563,82.491,21.8198]
[1772202259962,14.12126466,82.563,82.529,10.9048]
[1772202260560,10.27021211,82.562,82.468,299.0]
[1772202260861,14.13206135,82.56,82.452,36.34]
[1772202261062,10.27021211,82.559,82.452,36.34]
[1772202261363,14.13519753,82.554,82.49,10.9099]
[1772202262962,14.1405959,82.545,82.49,10.9099]
[1772202263166,14.1405959,82.545,82.475,10.912]
[1772202263365,10.903,82.544,82.449,21.8309]
[1772202263561,14.13956002,82.543,82.451,5.45102383]
[1772202263757,14.13956002,82.543,82.482,10.9111]
[1772202263962,14.13956002,82.535,82.449,21.8309]
[1772202264968,14.15031268,82.532,82.475,10.912]
[1772202265367,14.15031268,82.532,82.451,5.45113412]
[1772202265767,14.15031268,82.532,82.43,36.34]
[1772202265965,14.15031268,82.532,82.45,67.4510251]
[1772202266566,14.15031268,82.532,82.486,10.9105]
[1772202267069,14.15031268,82.532,82.493,10.9095]
[1772202267667,14.15031268,82.532,82.486,10.9105]
[1772202267866,14.15031268,82.532,82.454,21.8296]
[1772202268073,14.15031268,82.532,82.45,62.0]
[1772202268476,14.15031268,82.532,82.499,10.9088]
[1772202269676,11.21381179,82.562,82.505,10.908]
[1772202269980,14.18351115,82.56,82.451,36.34]
[1772202270177,14.1884735,82.558,82.451,36.34]
[1772202270378,14.1884735,82.556,82.473,21.8244]
[1772202270577,11.21381179,82.565,82.473,21.8244]
[1772202270578,14.1884735,82.554,82.473,21.8244]
[1772202270776,14.1884735,82.552,82.473,21.8244]
[1772202270985,4.8064873,82.551,82.482,3.49015058]
[1772202271290,361.31810568,82.573,82.482,3.49015058]
[1772202271580,361.31810568,82.573,82.536,10.9039]
[1772202272180,361.31810568,82.573,82.529,10.9048]
[1772202272486,361.31810568,82.573,82.512,3.49015058]
[1772202274185,361.31810568,82.573,82.546,10.9026]
[1772202274685,342.65870568,82.573,82.525,3.70026013]
[1772202275585,7.37995717,82.579,82.525,3.70026013]
[1772202275780,7.37995717,82.579,82.556,10.9012]
[1772202277684,7.37995717,82.579,82.548,10.9023]
[1772202277880,7.37995717,82.579,82.525,3.70026013]
[1772202278082,7.37995717,82.579,82.447,169.8001]
[1772202278083,36.34,82.56,82.475,3.90445853]
[1772202278282,8.39623661,82.554,82.475,3.90445853]
[1772202278483,8.39623661,82.548,82.475,3.90445853]
[1772202278682,11.28988529,82.574,82.475,3.90445853]
[1772202278882,191.78868927,82.632,82.501,8.32333997]
[1772202278883,11.28988529,82.569,82.501,8.32333997]
[1772202279388,51.39280615,82.58,82.501,8.32333997]
[1772202279684,15.05280615,82.58,82.501,8.32333997]
[1772202279885,10.9008,82.56,82.514,10.9068]
[1772202280073,15.05280615,82.58,82.514,10.9068]
[1772202280280,15.05280615,82.58,82.501,8.32333997]
[1772202280281,15.05280615,82.592,82.501,8.32333997]
[1772202280485,15.05280615,82.59,82.501,8.32333997]
[1772202280785,8.29336372,82.565,82.501,8.32333997]
[1772202281383,8.29336372,82.555,82.501,8.32333997]
[1772202281882,8.29336372,82.555,82.525,10.9054]
[1772202283281,8.29336372,82.575,82.537,10.9038]
[1772202283590,10.28518084,82.574,82.537,10.9038]
[1772202283782,10.28518084,82.573,82.537,10.9038]
[1772202283980,10.28518084,82.572,82.537,10.9038]
[1772202284184,10.28518084,82.571,82.537,10.9038]
[1772202284385,10.28518084,82.57,82.537,10.9038]
[1772202284580,8.29336372,82.568,82.477,8.75245701]
[1772202284788,8.29336372,82.546,82.477,8.75245701]
[1772202284993,8.29336372,82.544,82.477,8.75245701]
[1772202285190,8.29336372,82.542,82.477,8.75245701]
[1772202285391,8.29336372,82.537,82.477,8.75245701]
[1772202285592,8.29336372,82.535,82.477,8.75245701]
[1772202286485,8.29336372,82.535,82.507,10.9078]
[1772202286685,8.29336372,82.535,82.477,8.75245701]
[1772202287893,8.29336372,82.535,82.484,8.75245701]
[1772202288994,8.29336372,82.535,82.486,8.75245701]
[1772202289892,8.29336372,82.535,82.488,10.9102]
[1772202290095,8.29336372,82.535,82.489,8.75245701]
[1772202290893,8.29336372,82.556,82.489,8.75245701]
[1772202291093,8.29336372,82.554,82.489,8.75245701]
[1772202291292,8.29336372,82.549,82.489,8.75245701]
[1772202291596,8.29336372,82.547,82.489,8.75245701]
[1772202291793,8.29336372,82.545,82.489,8.75245701]
[1772202291999,8.29336372,82.543,82.489,8.75245701]
[1772202292199,8.29336372,82.541,82.489,8.75245701]
[1772202292401,18.54194978,82.54,82.489,8.75245701]
[1772202292703,10.24858606,82.539,82.489,8.75245701]
[1772202292902,10.24858606,82.538,82.489,8.75245701]
[1772202293199,8.29336372,82.556,82.489,8.75245701]
[1772202293391,10.24865618,82.555,82.489,8.75245701]
[1772202293704,10.24865618,82.554,82.503,19.66065701]
[1772202293901,10.24865618,82.553,82.503,8.75245701]
[1772202294098,10.24865618,82.552,82.503,8.75245701]
[1772202294292,8.29336372,82.556,82.503,8.75245701]
[1772202294497,8.29336372,82.554,82.505,10.908]
[1772202294700,18.54109759,82.553,82.505,10.908]
[1772202294905,10.24773387,82.552,82.505,10.908]
[1772202295105,8.29336372,82.535,82.481,10.9111]
[1772202295404,8.29336372,82.535,82.482,8.75245701]
[1772202295802,8.29336372,82.561,82.482,8.75245701]
[1772202296000,10.24763847,82.56,82.482,8.75245701]
[1772202296194,10.2470901,82.559,82.482,8.75245701]
[1772202296404,10.24772026,82.558,82.508,8.75245701]
[1772202296606,10.24772026,82.557,82.508,8.75245701]
[1772202296806,8.29336372,82.561,82.508,8.75245701]
[1772202297104,10.24772052,82.56,82.513,10.907]
[1772202297307,10.24772052,82.559,82.513,10.907]
[1772202297608,10.24772052,82.558,82.513,10.907]
[1772202297798,10.24772052,82.557,82.518,10.9062]
[1772202298000,10.24772052,82.556,82.518,10.9062]
[1772202298201,8.29336372,82.561,82.518,10.9062]
[1772202298396,10.24765196,82.56,82.518,10.9062]
[1772202298596,10.24765196,82.559,82.508,8.75245701]
[1772202298797,8.29336372,82.577,82.508,8.75245701]
[1772202299007,8.29336372,82.575,82.508,8.75245701]
[1772202299209,8.29336372,82.569,82.529,10.9048]
[1772202299509,18.54050926,82.568,82.529,10.9048]
[1772202299704,8.29336372,82.566,82.508,8.75245701]
[1772202299902,10.24714554,82.565,82.508,8.75245701]
[1772202300099,10.24714554,82.564,82.508,8.75245701]
[1772202300308,8.29336372,82.562,82.508,8.75245701]
[1772202301107,8.29336372,82.562,82.524,10.9055]
[1772202301298,8.29336372,82.582,82.507,8.75245701]
[1772202301503,10.2466381,82.581,82.507,8.75245701]
[1772202301698,10.2466381,82.58,82.507,8.75245701]
[1772202301900,10.2466381,82.579,82.523,8.75245701]
[1772202302104,10.2466381,82.578,82.523,8.75245701]
[1772202302304,10.2466381,82.577,82.523,8.75245701]
[1772202302499,10.2466381,82.576,82.523,8.75245701]
[1772202302704,8.29336372,82.579,82.523,8.75245701]
[1772202302705,10.2466381,82.575,82.523,8.75245701]
[1772202302908,8.29336372,82.573,82.54,10.9034]
[1772202303611,8.29336372,82.571,82.533,10.9042]
[1772202303811,11.29422034,82.6,82.525,8.75245701]
[1772202304011,11.29422034,82.607,82.558,10.901]
[1772202304308,11.29422034,82.615,82.545,8.75245701]
[1772202304511,11.29422034,82.621,82.559,10.9008]
[1772202304808,11.29422034,82.612,82.545,8.75245701]
[1772202305009,11.29422034,82.608,82.53,8.75245701]
[1772202305207,11.29422034,82.604,82.53,8.75245701]
[1772202305611,11.29422034,82.604,82.543,10.903]
[1772202305817,8.29336372,82.598,82.503,8.75245701]
[1772202306109,8.29336372,82.593,82.52,8.75245701]
[1772202306316,8.29336372,82.591,82.52,8.75245701]
[1772202306614,8.29336372,82.578,82.529,10.9048]
[1772202307204,8.29336372,82.576,82.52,8.75245701]
[1772202308510,8.29336372,82.576,82.536,10.9039]
[1772202308816,8.29336372,82.599,82.52,8.75245701]
[1772202309114,8.29336372,82.599,82.547,8.75245701]
[1772202309810,8.29336372,82.614,82.547,8.75245701]
[1772202310716,9.70652188,82.632,82.568,9.89652282]
[1772202311111,9.70652188,82.627,82.584,10.8975]
[1772202311609,9.70652188,82.627,82.568,9.89652282]
[1772202312012,9.70652188,82.624,82.575,10.8988]
[1772202312412,9.70652188,82.624,82.552,9.89652282]
[1772202312805,11.29422034,82.636,82.552,9.89652282]
[1772202312806,9.70652188,82.611,82.567,10.8998]
[1772202313007,9.70652188,82.611,82.552,9.89652282]
[1772202313207,9.70652188,82.611,82.517,9.89652282]
[1772202313917,9.70652188,82.608,82.546,9.89652282]
[1772202314414,9.70652188,82.608,82.575,10.8988]
[1772202314714,9.70652188,82.608,82.521,5.44696262]
[1772202314715,2.188e-05,82.638,82.569,9.89652282]
[1772202315716,2.188e-05,82.638,82.584,9.89652282]
[1772202317416,2.188e-05,82.638,82.591,10.8966]
[1772202318012,15.05280615,82.669,82.554,21.8031]
[1772202318013,8.61239584,82.636,82.583,10.8977]
[1772202318214,8.61948166,82.634,82.583,10.8977]
[1772202318513,8.61948166,82.623,82.569,9.89652282]
[1772202319112,8.70688566,82.621,82.569,9.89652282]
[1772202319919,8.76588454,82.638,82.569,9.89652282]
[1772202320217,8.77286831,82.636,82.569,9.89652282]
[1772202320726,8.77286831,82.635,82.569,9.89652282]
[1772202321021,8.83116923,82.633,82.569,9.89652282]
[1772202321222,8.74618865,82.631,82.569,9.89652282]
[1772202321417,8.74618865,82.629,82.569,9.89652282]
[1772202321719,8.74618865,82.627,82.569,9.89652282]
[1772202321920,19.69701878,82.618,82.569,9.89652282]
[1772202322220,8.81038982,82.617,82.522,9.89652282]
[1772202322818,8.81038982,82.605,82.548,10.9023]
[1772202323017,8.81038982,82.605,82.546,9.89652282]
[1772202323915,8.81038982,82.605,82.555,10.9014]
[1772202324310,8.88233544,82.603,82.511,9.89652282]
[1772202324717,19.77953544,82.588,82.537,10.9037]
[1772202325024,47.63422034,82.622,82.537,10.9037]
[1772202325025,8.88233544,82.587,82.537,10.9037]
[1772202325717,8.98143092,82.585,82.529,20.80132282]
[1772202327025,10.8983,82.579,82.529,20.80132282]
[1772202327221,20.01794487,82.579,82.529,20.80132282]
[1772202327618,9.11964487,82.578,82.529,20.80132282]
[1772202328521,9.17960946,82.575,82.514,9.89652282]
[1772202328820,9.17960946,82.573,82.499,9.89652282]
[1772202329020,9.23286685,82.569,82.499,9.89652282]
[1772202329326,9.18284892,82.567,82.499,9.89652282]
[1772202329826,10.9011,82.558,82.507,10.9077]
[1772202330027,9.2352697,82.557,82.507,10.9077]
[1772202330224,9.2352697,82.557,82.499,9.89652282]
[1772202330426,9.24110777,82.555,82.499,9.89652282]
[1772202332023,9.24110777,82.555,82.506,10.9079]
[1772202332420,9.24110777,82.555,82.506,20.80442282]
[1772202332722,9.5210175,82.571,82.506,9.89652282]
[1772202334122,9.70652188,82.593,82.511,9.89652282]
[1772202334323,9.70652188,82.591,82.511,9.89652282]
[1772202334521,9.70652188,82.589,82.511,9.89652282]
[1772202334921,9.70652188,82.589,82.528,9.89652282]
[1772202335626,9.70652188,82.589,82.531,9.89652282]
[1772202336023,10.8978,82.583,82.531,9.89652282]
[1772202336423,9.70652188,82.589,82.531,9.89652282]
[1772202336628,9.70652188,82.589,82.487,21.8209]
[1772202336629,9.70652188,82.589,82.534,9.89652282]
[1772202337930,9.70652188,82.589,82.536,10.29135896]
[1772202338131,9.77758209,82.587,82.468,10.29135896]
[1772202338323,9.77758209,82.585,82.469,10.29135896]
[1772202338526,9.77758209,82.577,82.469,10.29135896]
[1772202338727,9.77758209,82.558,82.503,10.9083]
[1772202338928,9.77758209,82.558,82.494,10.29135896]
[1772202339233,9.75452086,82.573,82.523,10.9056]
[1772202339430,9.75452086,82.597,82.524,10.29135896]
[1772202339633,9.75452086,82.595,82.524,10.29135896]
[1772202339822,9.75452086,82.593,82.524,10.29135896]
[1772202340034,9.85940619,82.591,82.524,10.29135896]
[1772202340329,9.85940619,82.588,82.524,10.29135896]
[1772202340530,10.1310833,82.587,82.524,10.29135896]
[1772202340729,9.85940619,82.571,82.524,10.29135896]
[1772202341330,10.9,82.566,82.525,10.9053]
[1772202341525,9.85940619,82.571,82.524,10.29135896]
[1772202342335,10.8982,82.58,82.524,10.29135896]
[1772202342336,9.9966316,82.58,82.524,10.29135896]
[1772202343237,9.81347142,82.578,82.524,10.29135896]
[1772202343434,9.81347142,82.576,82.524,10.29135896]
[1772202343735,9.81347142,82.574,82.524,10.29135896]
[1772202343937,9.85724223,82.572,82.493,10.4776707]
[1772202344130,9.86164254,82.57,82.493,10.4776707]
[1772202344331,9.86164254,82.57,82.495,10.4776707]
[1772202345034,9.86164254,82.57,82.525,10.9054]
[1772202346235,9.86164254,82.57,82.516,10.4776707]
[1772202347133,10.00636587,82.587,82.537,10.9037]
[1772202347733,10.00636587,82.587,82.532,10.4776707]
[1772202348937,10.8985,82.578,82.533,10.9043]
[1772202349136,10.0444361,82.577,82.517,10.4776707]
[1772202349638,10.0444361,82.577,82.537,10.9037]
[1772202349836,10.0444361,82.596,82.531,10.4776707]
[1772202350037,10.8965,82.593,82.55,10.9021]
[1772202350229,10.00083481,82.592,82.55,10.9021]
[1772202350430,10.8965,82.593,82.55,10.9021]
[1772202350636,10.0444361,82.596,82.55,10.9021]
[1772202350637,10.8968,82.59,82.55,10.9021]
[1772202352036,10.0444361,82.596,82.531,10.4776707]
[1772202352236,10.0444361,82.587,82.497,10.4776707]
[1772202352438,10.0444361,82.585,82.497,10.4776707]
[1772202352640,10.9003,82.564,82.508,10.4776707]
[1772202353737,10.9011,82.558,82.508,10.4776707]
[1772202354041,10.0444361,82.569,82.508,10.4776707]
[1772202354235,10.0444361,82.567,82.508,10.4776707]
[1772202354540,10.0444361,82.565,82.508,10.4776707]
[1772202354740,10.0444361,82.563,82.508,10.4776707]
[1772202354941,10.9019,82.552,82.508,10.4776707]
[1772202355442,10.0444361,82.561,82.508,10.4776707]
[1772202355643,10.9027,82.546,82.508,10.4776707]
[1772202356740,10.9012,82.557,82.508,10.4776707]
[1772202357241,10.0444361,82.549,82.492,10.4776707]
[1772202357543,10.0444361,82.567,82.492,10.4776707]
[1772202357737,10.0444361,82.565,82.492,10.4776707]
[1772202357939,10.0444361,82.563,82.493,10.4776707]
[1772202358133,10.0444361,82.561,82.493,10.4776707]
[1772202358641,477.02573806,82.58,82.493,10.4776707]
[1772202358642,10.0444361,82.551,82.493,10.4776707]
[1772202359032,10.0444361,82.545,82.493,10.4776707]
[1772202360045,10.9032,82.542,82.493,10.4776707]
[1772202360342,10.0444361,82.541,82.493,10.4776707]
[1772202361539,10.9036,82.539,82.493,10.4776707]
[1772202361738,10.0444361,82.538,82.482,10.9111]
[1772202362243,10.905,82.528,82.482,10.9111]
[1772202362438,10.0444361,82.538,82.482,10.9111]
[1772202362638,10.0444361,82.538,82.489,10.4776707]
[1772202362840,10.0444361,82.558,82.489,10.4776707]
[1772202363139,10.00622992,82.557,82.505,10.4776707]
[1772202363342,36.34,82.552,82.451,10.4776707]
[1772202363542,465.73151772,82.58,82.451,10.4776707]
[1772202363543,10.0444361,82.543,82.451,10.4776707]
[1772202363846,10.0444361,82.539,82.451,10.4776707]
[1772202364148,36.34,82.54,82.451,10.4776707]
[1772202364149,10.0444361,82.537,82.451,10.4776707]
[1772202364534,10.0444361,82.535,82.451,10.4776707]
[1772202364947,10.9057,82.523,82.473,10.9122]
[1772202365146,10.0444361,82.535,82.469,10.4776707]
[1772202365948,10.0444361,82.531,82.48,10.9113]
[1772202366150,10.0444361,82.531,82.469,10.4776707]
[1772202366540,10.0444361,82.523,82.435,10.4776707]
[1772202366749,10.0444361,82.521,82.435,10.4776707]
[1772202366949,10.0444361,82.519,82.435,10.4776707]
[1772202367143,10.02166234,82.518,82.435,10.4776707]
[1772202367344,10.0444361,82.517,82.435,10.4776707]
[1772202367544,36.34,82.536,82.457,10.4776707]
[1772202367545,10.0444361,82.514,82.457,10.4776707]
[1772202368949,10.0444361,82.514,82.466,10.4776707]
[1772202370061,10.0444361,82.514,82.472,10.9123]
[1772202370854,10.73625586,82.513,82.457,10.9143]
[1772202371562,10.75529614,82.501,82.44,11.11048554]
[1772202372150,10.75529614,82.498,82.451,10.9152]
[1772202372450,10.75529614,82.498,82.44,11.11048554]
[1772202373961,10.75529614,82.498,82.458,10.9142]
[1772202374159,10.75529614,82.498,82.412,11.11048554]
[1772202374359,10.75529614,82.495,82.412,11.11048554]
[1772202374561,10.75529614,82.489,82.441,10.9165]
[1772202374961,10.75529614,82.486,82.431,10.9177]
[1772202375970,10.75529614,82.483,82.431,10.9177]
[1772202376460,10.75529614,82.48,82.431,10.9177]
[1772202377056,10.75529614,82.48,82.435,11.11048554]
[1772202377566,10.75529614,82.497,82.435,11.11048554]
[1772202377766,10.9093,82.496,82.447,10.9156]
[1772202377961,10.75529614,82.495,82.447,10.9156]
[1772202378162,36.34,82.494,82.412,11.11048554]
[1772202378456,10.75529614,82.507,82.447,11.11048554]
[1772202379668,10.75529614,82.497,82.447,11.11048554]
[1772202380169,10.75529614,82.497,82.448,10.9155]
[1772202380570,10.75529614,82.495,82.429,11.11048554]
[1772202380969,10.75529614,82.491,82.429,11.11048554]
[1772202381271,10.75529614,82.505,82.429,11.11048554]
[1772202381461,10.75529614,82.505,82.411,203.06413335]
[1772202381462,10.75529614,82.505,82.45,11.11048554]
[1772202382365,21.8056,82.545,82.45,11.11048554]
[1772202382366,10.75529614,82.525,82.45,11.11048554]
[1772202382968,10.75529614,82.542,82.485,11.11048554]
[1772202384973,10.9033,82.541,82.49,10.91]
[1772202385472,10.75529614,82.565,82.491,11.11048554]
[1772202386172,10.75529614,82.544,82.477,11.11048554]
[1772202386564,10.75529614,82.544,82.492,11.11048554]
[1772202386973,10.75529614,82.544,82.429,11.11048554]
[1772202387370,10.9042,82.535,82.486,10.9105]
[1772202387570,10.75529614,82.534,82.486,10.9105]